bitfinex/quotes_BTCUSD_20230403
["timestamp","ask_amount","ask_price","bid_price","bid_amount"]
[1680544582009,0.35489056,27969.0,27964.0,0.102679]
[1680544582253,0.009,27967.0,27965.0,0.001]
[1680544582473,0.36371056,27967.0,27965.0,0.001]
[1680544582717,0.042093,27966.0,27965.0,0.001]
[1680544582962,0.042093,27966.0,27962.0,0.0848]
[1680544583192,0.14189681,27966.0,27964.0,0.009]
[1680544583427,0.35489056,27967.0,27962.0,0.0848]
[1680544583675,0.50560737,27967.0,27965.0,0.001]
[1680544583883,0.042013,27966.0,27965.0,0.001]
[1680544584122,0.042013,27966.0,27962.0,0.0848]
[1680544584361,0.35471056,27967.0,27962.0,0.0848]
[1680544584591,0.35471056,27963.0,27960.0,0.0842]
[1680544584823,0.4146,27958.0,27954.0,0.0209]
[1680544585115,0.4146,27958.0,27957.0,0.00298144]
[1680544585116,1.68815556,27958.0,27957.0,0.00298144]
[1680544585365,1.68815556,27958.0,27954.0,0.0209]
[1680544585366,0.2,27955.0,27954.0,0.0209]
[1680544585601,0.281087,27955.0,27954.0,0.0209]
[1680544586051,0.631347,27955.0,27954.0,0.0209]
[1680544586323,0.650347,27955.0,27954.0,0.0229]
[1680544586548,0.61741756,27955.0,27954.0,0.0229]
[1680544586808,0.41741756,27955.0,27954.0,0.0229]
[1680544587024,0.42975756,27955.0,27954.0,0.0229]
[1680544587267,0.41723756,27955.0,27954.0,0.0229]
[1680544587753,0.42975756,27955.0,27954.0,0.0229]
[1680544588016,0.062527,27955.0,27954.0,0.0229]
[1680544588262,0.019,27955.0,27954.0,0.0229]
[1680544589209,0.2,27956.0,27954.0,0.1057]
[1680544589436,0.2,27956.0,27955.0,0.0848]
[1680544590836,0.203,27956.0,27955.0,0.0848]
[1680544591526,0.215519,27956.0,27954.0,0.0209]
[1680544592198,0.044916,27955.0,27954.0,0.0209]
[1680544592428,0.057436,27955.0,27954.0,0.0209]
[1680544593139,0.41514656,27955.0,27954.0,0.0209]
[1680544594109,0.41214656,27955.0,27954.0,0.0209]
[1680544594340,0.41514656,27955.0,27954.0,0.0209]
[1680544594564,0.48119102,27955.0,27954.0,0.0209]
[1680544594859,0.41214656,27955.0,27954.0,0.0209]
[1680544595140,0.41232656,27955.0,27954.0,0.0209]
[1680544595979,0.43232656,27955.0,27954.0,0.0229]
[1680544596560,0.41232656,27955.0,27954.0,0.0209]
[1680544597322,0.43232656,27955.0,27954.0,0.0229]
[1680544597588,0.41232656,27955.0,27954.0,0.0229]
[1680544597862,0.43232656,27955.0,27954.0,0.0229]
[1680544598630,0.41232656,27955.0,27954.0,0.0209]
[1680544598906,0.43232656,27955.0,27954.0,0.0209]
[1680544599200,0.41232656,27955.0,27954.0,0.0229]
[1680544599436,0.43232656,27955.0,27954.0,0.0229]
[1680544599885,0.41980656,27955.0,27954.0,0.0229]
[1680544600104,0.43232656,27955.0,27954.0,0.0229]
[1680544604792,1.03886802,27955.0,27954.0,0.0229]
[1680544605266,1.50205079,27955.0,27954.0,0.0229]
[1680544605411,1.80205079,27955.0,27954.0,0.02175268]
[1680544605412,1.80223079,27955.0,27954.0,0.02175268]
[1680544605727,1.80923079,27955.0,27954.0,0.01975268]
[1680544605964,1.78223079,27955.0,27954.0,0.01975268]
[1680544606236,1.80923079,27955.0,27954.0,0.01975268]
[1680544607540,1.89343079,27955.0,27954.0,0.01975268]
[1680544607816,1.94831764,27955.0,27954.0,0.01975268]
[1680544608351,1.97531764,27955.0,27954.0,0.01975268]
[1680544608609,1.92131764,27955.0,27954.0,0.01975268]
[1680544608868,1.94831764,27955.0,27954.0,0.01975268]
[1680544609161,1.92131764,27955.0,27954.0,0.01975268]
[1680544609408,1.54831764,27955.0,27954.0,0.01975268]
[1680544609690,1.42769433,27955.0,27954.0,0.01975268]
[1680544610226,1.34289433,27955.0,27954.0,0.01975268]
[1680544610506,0.95759333,27955.0,27954.0,0.01975268]
[1680544610800,1.15759333,27955.0,27954.0,0.01975268]
[1680544611306,1.27149931,27955.0,27954.0,0.01975268]
[1680544611514,1.29849931,27955.0,27954.0,0.01975268]
[1680544612072,1.09849931,27955.0,27954.0,0.01975268]
[1680544612811,0.63967456,27955.0,27954.0,0.01975268]
[1680544613027,0.62715456,27955.0,27954.0,0.01975268]
[1680544613249,0.58171056,27955.0,27954.0,0.01975268]
[1680544613477,0.62457956,27955.0,27954.0,0.01975268]
[1680544613772,0.59757956,27955.0,27954.0,0.01975268]
[1680544613981,0.68560742,27955.0,27954.0,0.01975268]
[1680544614202,0.59757956,27955.0,27954.0,0.01975268]
[1680544614418,0.61957956,27955.0,27954.0,0.01975268]
[1680544614856,0.59757956,27955.0,27954.0,0.01975268]
[1680544615087,0.069869,27955.0,27954.0,0.01975268]
[1680544615295,0.3848,27960.0,27954.0,0.01975268]
[1680544615296,0.2,27957.0,27954.0,0.01975268]
[1680544615519,0.022,27955.0,27954.0,0.01975268]
[1680544616407,0.022,27955.0,27954.0,0.13597268]
[1680544616630,0.022,27955.0,27954.0,0.53609268]
[1680544616853,0.022,27955.0,27954.0,0.70775268]
[1680544617095,0.022,27955.0,27954.0,0.68986668]
[1680544617308,0.2,27960.0,27954.0,0.51826668]
[1680544617538,0.027,27955.0,27954.0,0.52291868]
[1680544617764,0.2,27960.0,27954.0,0.70701968]
[1680544617980,0.2,27960.0,27954.0,0.69351868]
[1680544618412,0.002,27955.0,27954.0,0.69951868]
[1680544618631,0.2,27960.0,27954.0,0.70791668]
[1680544618866,0.2,27960.0,27954.0,0.69351868]
[1680544619142,0.00018,27962.0,27955.0,0.35471056]
[1680544619385,0.002,27960.0,27957.0,0.429553]
[1680544619611,0.002,27960.0,27959.0,0.0848]
[1680544619834,0.002,27960.0,27959.0,0.116381]
[1680544620277,0.002,27960.0,27959.0,0.287981]
[1680544620493,0.35471056,27964.0,27959.0,0.288161]
[1680544620712,0.001,27962.0,27961.0,0.0842]
[1680544620949,0.35471056,27964.0,27961.0,0.097645]
[1680544621173,0.35471056,27964.0,27961.0,0.0842]
[1680544621678,0.35571056,27964.0,27960.0,0.40018]
[1680544621926,0.20018,27965.0,27961.0,0.01449]
[1680544622142,0.001,27964.0,27962.0,0.053643]
[1680544622374,0.001,27964.0,27963.0,0.099302]
[1680544622598,0.001,27964.0,27963.0,0.270842]
[1680544622834,0.001,27964.0,27963.0,0.014562]
[1680544623078,0.001,27964.0,27963.0,0.014502]
[1680544623302,0.001,27964.0,27963.0,0.186042]
[1680544623530,0.001,27964.0,27963.0,0.186162]
[1680544623770,0.55471056,27968.0,27963.0,0.186162]
[1680544623987,0.001,27964.0,27963.0,0.17166]
[1680544624220,0.55471056,27968.0,27963.0,0.185138]
[1680544624442,0.55471056,27968.0,27963.0,0.021]
[1680544624679,0.55471056,27968.0,27963.0,0.17154]
[1680544624913,0.55471056,27968.0,27963.0,0.19254]
[1680544625128,0.55471056,27968.0,27963.0,0.1926]
[1680544625385,0.69660737,27968.0,27963.0,0.17472]
[1680544625613,0.55471056,27968.0,27963.0,0.17466]
[1680544625838,0.35471056,27967.0,27963.0,0.00312]
[1680544626088,0.35471056,27967.0,27963.0,0.003]
[1680544626529,0.35471056,27967.0,27962.0,0.08498]
[1680544627037,0.49660737,27967.0,27962.0,0.08498]
[1680544627038,0.35471056,27967.0,27963.0,0.003]
[1680544627305,0.35489056,27967.0,27962.0,0.06946138]
[1680544627866,0.49678737,27967.0,27962.0,0.06946138]
[1680544628134,0.49678737,27967.0,27962.0,0.24106138]
[1680544628351,0.2,27965.0,27962.0,0.009]
[1680544628581,0.55489056,27965.0,27962.0,0.009]
[1680544629044,0.35471056,27964.0,27962.0,0.009]
[1680544629300,0.35489056,27964.0,27962.0,0.009]
[1680544629997,0.00018,27964.0,27962.0,0.409]
[1680544630222,0.00018,27964.0,27963.0,0.014112]
[1680544630921,0.20018,27965.0,27963.0,0.014112]
[1680544631141,0.20018,27965.0,27962.0,0.420881]
[1680544631370,0.20018,27965.0,27963.0,0.013342]
[1680544631849,0.20018,27965.0,27963.0,0.187882]
[1680544632082,0.20018,27965.0,27963.0,0.17154]
[1680544632313,0.20118,27965.0,27964.0,0.014522]
[1680544632541,0.00018,27965.0,27964.0,0.014522]
[1680544632778,0.00018,27966.0,27964.0,0.186062]
[1680544633059,0.00018,27966.0,27965.0,0.014877]
[1680544633307,0.2,27968.0,27965.0,0.014877]
[1680544633308,0.00018,27967.0,27965.0,0.014877]
[1680544633777,0.00018,27967.0,27963.0,0.17154]
[1680544634009,0.35489056,27967.0,27964.0,0.17154]
[1680544634233,0.35489056,27967.0,27963.0,0.17154]
[1680544634465,0.35489056,27967.0,27963.0,0.17454]
[1680544634715,0.35471056,27966.0,27963.0,0.17154]
[1680544634936,0.35489056,27966.0,27963.0,0.18754]
[1680544635170,0.35489056,27966.0,27963.0,0.17154]
[1680544635465,0.35489056,27966.0,27963.0,0.17454]
[1680544636019,0.35489056,27966.0,27963.0,0.17154]
[1680544636499,0.35589056,27966.0,27963.0,0.18754]
[1680544637112,0.35589056,27966.0,27963.0,0.20542]
[1680544637384,0.00018,27966.0,27964.0,0.185442]
[1680544637649,0.00018,27967.0,27965.0,0.013903]
[1680544637893,0.35489056,27967.0,27965.0,0.013903]
[1680544638340,0.35489056,27967.0,27964.0,0.18942]
[1680544638557,0.001,27966.0,27963.0,0.20542]
[1680544638786,0.00018,27966.0,27964.0,0.031564]
[1680544639021,0.00018,27966.0,27965.0,0.01143238]
[1680544639254,0.35489056,27967.0,27964.0,0.01788]
[1680544639506,0.35571056,27967.0,27965.0,0.009]
[1680544640856,0.35471056,27966.0,27961.0,0.08438]
[1680544641149,0.49660737,27966.0,27961.0,0.102201]
[1680544641417,0.49660737,27966.0,27961.0,0.502201]
[1680544641688,0.49660737,27966.0,27965.0,0.003]
[1680544641980,0.40198256,27966.0,27960.0,0.00018]
[1680544642492,0.40198256,27966.0,27961.0,0.023]
[1680544642493,0.2,27964.0,27961.0,0.023]
[1680544642495,0.2,27964.0,27959.0,0.018062]
[1680544642791,0.2,27964.0,27960.0,0.017882]
[1680544642792,0.69660737,27964.0,27960.0,0.017882]
[1680544643068,0.55471056,27964.0,27960.0,0.017882]
[1680544643349,0.55471056,27964.0,27960.0,0.023]
[1680544644040,0.35471056,27963.0,27960.0,0.023]
[1680544644041,0.35471056,27963.0,27959.0,0.17178]
[1680544644248,0.35471056,27963.0,27959.0,0.19478]
[1680544644451,0.35471056,27963.0,27959.0,0.17178]
[1680544644709,0.35471056,27963.0,27960.0,0.009]
[1680544644944,0.35471056,27963.0,27959.0,0.17178]
[1680544645170,0.35571056,27963.0,27959.0,0.18778]
[1680544645385,0.35471056,27963.0,27959.0,0.189663]
[1680544645805,0.35571056,27963.0,27960.0,0.1806]
[1680544646017,0.35471056,27963.0,27960.0,0.189482]
[1680544646218,0.20018,27964.0,27960.0,0.017882]
[1680544646477,0.55477056,27964.0,27961.0,0.008399]
[1680544646696,0.55489056,27964.0,27961.0,0.189481]
[1680544646916,0.55489056,27964.0,27961.0,0.1716]
[1680544647136,0.55489056,27964.0,27960.0,0.189482]
[1680544647353,0.001,27963.0,27961.0,0.1716]
[1680544647573,0.55489056,27964.0,27961.0,0.1716]
[1680544647699,0.20018,27964.0,27961.0,0.189481]
[1680544647982,0.2,27964.0,27962.0,0.011634]
[1680544649669,0.2,27964.0,27962.0,0.183234]
[1680544649889,0.20018,27964.0,27962.0,0.1716]
[1680544650103,0.204,27964.0,27963.0,0.011799]
[1680544650314,0.20418,27964.0,27962.0,0.189481]
[1680544650530,0.20418,27964.0,27963.0,0.012195]
[1680544650738,0.20018,27964.0,27963.0,0.183735]
[1680544650956,0.20018,27964.0,27963.0,0.19242]
[1680544651174,0.20018,27964.0,27963.0,0.17454]
[1680544651389,0.2,27964.0,27963.0,0.003]
[1680544652024,0.2,27964.0,27963.0,0.17454]
[1680544652505,0.2,27964.0,27963.0,0.15957599]
[1680544652663,0.2,27964.0,27963.0,0.17154]
[1680544653096,0.2,27964.0,27963.0,0.18834]
[1680544653307,0.2,27964.0,27963.0,0.18634]
[1680544653525,0.2,27964.0,27963.0,0.18834]
[1680544653746,0.2,27964.0,27963.0,0.199788]
[1680544654414,0.2,27964.0,27963.0,0.217668]
[1680544654845,0.2,27964.0,27963.0,0.199788]
[1680544655551,0.2,27964.0,27963.0,0.18834]
[1680544655759,0.2,27964.0,27963.0,0.200404]
[1680544655989,0.2,27964.0,27963.0,0.18834]
[1680544656198,0.2,27964.0,27963.0,0.199342]
[1680544656621,0.2,27964.0,27963.0,0.18834]
[1680544656845,0.2,27964.0,27963.0,0.1884]
[1680544657075,0.2,27964.0,27963.0,0.002]
[1680544657719,0.20018,27966.0,27963.0,0.002]
[1680544657941,0.35471056,27965.0,27961.0,0.273761]
[1680544658155,0.35471056,27965.0,27961.0,0.102161]
[1680544658937,0.35471056,27965.0,27962.0,0.1716]
[1680544659148,0.35471056,27965.0,27962.0,0.018001]
[1680544659296,0.35471056,27965.0,27962.0,0.189481]
[1680544659497,0.35471056,27965.0,27962.0,0.189661]
[1680544659750,0.35471056,27965.0,27963.0,0.1736]
[1680544660009,0.20018,27966.0,27963.0,0.01788]
[1680544660265,0.001,27965.0,27963.0,0.58942]
[1680544660522,0.55489056,27966.0,27963.0,0.41788]
[1680544660784,0.55489056,27966.0,27963.0,0.59142]
[1680544661023,0.55489056,27966.0,27963.0,0.002]
[1680544661269,0.55471056,27966.0,27963.0,0.17354]
[1680544661506,0.55489056,27966.0,27963.0,0.17354]
[1680544662224,0.55489056,27966.0,27963.0,0.17154]
[1680544662466,0.55489056,27966.0,27964.0,0.011607]
[1680544662749,0.20018,27966.0,27963.0,0.19142]
[1680544662999,0.2,27966.0,27964.0,0.011762]
[1680544663739,0.204,27966.0,27964.0,0.011762]
[1680544665887,0.2,27966.0,27964.0,0.011762]
[1680544666107,0.201,27966.0,27964.0,0.027762]
[1680544666323,0.2,27966.0,27963.0,0.17154]
[1680544666583,0.2,27966.0,27964.0,0.013725]
[1680544666799,0.2,27966.0,27964.0,0.002]
[1680544667700,0.2,27966.0,27964.0,0.013068]
[1680544667936,0.2,27966.0,27964.0,0.011068]
[1680544668815,0.2,27966.0,27964.0,0.002]
[1680544669032,0.2,27966.0,27963.0,0.18942]
[1680544669231,0.2,27966.0,27964.0,0.002]
[1680544669970,0.2,27966.0,27964.0,0.013828]
[1680544671976,0.2,27966.0,27964.0,0.185368]
[1680544672211,0.2,27966.0,27965.0,0.0118]
[1680544673136,0.2,27966.0,27965.0,0.029679]
[1680544673807,0.204,27966.0,27965.0,0.029679]
[1680544674503,0.2,27966.0,27965.0,0.201219]
[1680544675167,0.2,27966.0,27962.0,0.08523162]
[1680544675168,1.26755556,27966.0,27962.0,0.08523162]
[1680544675401,0.2,27962.0,27961.0,6e-05]
[1680544675623,0.2,27962.0,27960.0,0.00012]
[1680544675624,0.60606556,27962.0,27957.0,0.08541162]
[1680544675851,0.2,27958.0,27957.0,0.00018]
[1680544676534,0.2,27958.0,27956.0,0.08541162]
[1680544676758,0.2,27958.0,27956.0,0.25701162]
[1680544676982,0.2,27958.0,27956.0,0.65701162]
[1680544677212,0.2,27958.0,27957.0,0.008733]
[1680544677454,0.2,27958.0,27956.0,0.65701162]
[1680544677683,0.2,27958.0,27956.0,0.57178]
[1680544677912,0.2,27958.0,27957.0,0.008239]
[1680544678431,0.2,27958.0,27957.0,0.09347062]
[1680544678662,0.65160856,27958.0,27954.0,0.01975268]
[1680544678898,0.2,27955.0,27954.0,0.01975268]
[1680544679135,0.251965,27955.0,27954.0,0.01975268]
[1680544680079,0.252463,27955.0,27954.0,0.01975268]
[1680544680330,0.20018,27955.0,27954.0,0.01975268]
[1680544680567,0.1668,27955.0,27954.0,0.03575268]
[1680544681023,0.1668,27955.0,27954.0,0.01975268]
[1680544682423,0.1768,27955.0,27954.0,0.02075268]
[1680544682655,0.1668,27955.0,27954.0,0.01975268]
[1680544682890,0.1838,27955.0,27954.0,0.02075268]
[1680544683568,0.1838,27955.0,27954.0,0.01975268]
[1680544683569,0.1668,27955.0,27954.0,0.01975268]
[1680544683791,0.1768,27955.0,27954.0,0.02075268]
[1680544684021,0.1768,27955.0,27954.0,0.01975268]
[1680544684304,0.1938,27955.0,27954.0,0.02075268]
[1680544684833,0.1938,27955.0,27954.0,0.03863868]
[1680544684834,0.027,27955.0,27954.0,0.03863868]
[1680544684838,0.027,27955.0,27954.0,0.50021054]
[1680544685161,0.027,27955.0,27954.0,1.55383189]
[1680544685394,0.011,27955.0,27954.0,1.93766774]
[1680544685659,0.1668,27958.0,27954.0,1.80953695]
[1680544685954,0.002,27955.0,27954.0,1.82753695]
[1680544686227,0.002,27955.0,27954.0,1.65593695]
[1680544686506,0.1668,27958.0,27954.0,1.84982159]
[1680544686739,0.1668,27958.0,27956.0,0.08559072]
[1680544686975,0.1668,27958.0,27957.0,0.017884]
[1680544687244,0.1668,27958.0,27957.0,0.189484]
[1680544687498,0.1668,27958.0,27957.0,0.189664]
[1680544688288,0.00018,27962.0,27957.0,0.189664]
[1680544688585,0.0011624,27965.0,27957.0,0.565384]
[1680544688819,0.1668,27961.0,27957.0,0.69196079]
[1680544689050,0.1668,27961.0,27958.0,0.5716]
[1680544689280,0.1668,27961.0,27959.0,0.017883]
[1680544689526,0.55471056,27960.0,27957.0,0.00012]
[1680544689759,0.55471056,27960.0,27955.0,0.00018]
[1680544689760,0.1668,27958.0,27955.0,0.00018]
[1680544689989,0.35471056,27957.0,27954.0,0.01975268]
[1680544690212,0.49660737,27957.0,27954.0,0.01975268]
[1680544690443,0.1668,27955.0,27954.0,0.01975268]
[1680544691927,0.1668,27955.0,27954.0,0.02975268]
[1680544692155,0.1668,27955.0,27954.0,0.01975268]
[1680544692889,0.1678,27955.0,27954.0,0.02975268]
[1680544696558,0.1668,27955.0,27954.0,0.01975268]
[1680544696777,0.1668,27955.0,27954.0,0.02275268]
[1680544698442,0.00018,27957.0,27954.0,0.02275268]
[1680544698668,0.1668,27957.0,27954.0,0.04063868]
[1680544698898,0.1668,27957.0,27955.0,0.417885]
[1680544699121,0.1668,27957.0,27955.0,0.424465]
[1680544700235,0.1668,27959.0,27955.0,0.424465]
[1680544700685,0.1668,27959.0,27955.0,0.800365]
[1680544701375,0.001,27957.0,27955.0,0.90195572]
[1680544701609,0.00099256,27961.0,27955.0,0.88595572]
[1680544701830,0.00099256,27961.0,27955.0,0.90195572]
[1680544701831,0.001,27959.0,27955.0,0.90195572]
[1680544702064,0.1668,27962.0,27955.0,0.88595572]
[1680544702281,0.30869681,27962.0,27955.0,0.88595572]
[1680544702729,0.30869681,27962.0,27955.0,0.90195572]
[1680544702730,0.001,27957.0,27955.0,0.90195572]
[1680544702976,0.30869681,27962.0,27955.0,1.24066628]
[1680544703204,0.30869681,27962.0,27955.0,1.36905235]
[1680544703443,0.30869681,27962.0,27955.0,1.24066628]
[1680544704126,0.30869681,27962.0,27955.0,1.38105235]
[1680544704127,0.30861497,27962.0,27955.0,1.38105235]
[1680544704375,0.30861497,27962.0,27955.0,1.39705235]
[1680544704604,0.30861497,27962.0,27955.0,1.36905235]
[1680544704830,0.30861497,27962.0,27955.0,0.51395572]
[1680544704831,0.14189681,27961.0,27955.0,0.51395572]
[1680544705602,0.14189681,27961.0,27955.0,0.48595572]
[1680544705852,0.14189681,27961.0,27955.0,0.51395572]
[1680544706573,0.16671816,27962.0,27958.0,0.03328184]
[1680544706814,0.16671816,27965.0,27961.0,0.0848]
[1680544707053,0.16671816,27965.0,27962.0,0.017881]
[1680544707855,0.16671816,27967.0,27962.0,0.793961]
[1680544708095,0.16671816,27967.0,27964.0,0.0848]
[1680544708374,0.00018,27968.0,27965.0,0.74848956]
[1680544708601,0.16671816,27970.0,27965.0,0.74848956]
[1680544708602,0.16689816,27970.0,27965.0,0.74848956]
[1680544708832,0.16689816,27970.0,27966.0,0.7759]
[1680544709065,0.16689816,27970.0,27968.0,0.3759]
[1680544709285,0.00018,27970.0,27969.0,0.017876]
[1680544709507,0.00018,27971.0,27969.0,0.017876]
[1680544709736,0.02317,27972.0,27969.0,0.017876]
[1680544710224,0.02317,27972.0,27969.0,0.037876]
[1680544710698,0.02299,27972.0,27969.0,0.037876]
[1680544711392,0.02317,27972.0,27969.0,0.037876]
[1680544711624,0.02299,27972.0,27969.0,0.037876]
[1680544711851,0.02299,27972.0,27969.0,0.017876]
[1680544712076,0.02299,27972.0,27969.0,0.037876]
[1680544713235,0.02299,27972.0,27969.0,0.017876]
[1680544713466,0.02299,27972.0,27969.0,0.045876]
[1680544719239,0.16488681,27972.0,27969.0,0.045876]
[1680544719465,0.16488681,27972.0,27969.0,0.028]
[1680544719466,0.02317,27972.0,27969.0,0.028]
[1680544719701,0.02317,27972.0,27969.0,0.045876]
[1680544719702,0.02299,27972.0,27969.0,0.045876]
[1680544721299,0.02299,27972.0,27970.0,0.0012]
[1680544722033,0.02299,27972.0,27970.0,0.019076]
[1680544722728,0.02299,27972.0,27970.0,0.0012]
[1680544722980,0.02299,27972.0,27970.0,0.019076]
[1680544723219,0.02317,27972.0,27970.0,0.033076]
[1680544724862,0.02299,27974.0,27973.0,0.3759]
[1680544725096,0.02299,27974.0,27973.0,1.03382956]
[1680544725327,0.02299,27974.0,27973.0,1.33400956]
[1680544725563,0.02299,27974.0,27973.0,1.91274956]
[1680544726019,0.02299,27977.0,27976.0,0.3759]
[1680544726245,0.02299,27977.0,27976.0,1.33321556]
[1680544726473,0.02299,27977.0,27976.0,1.73321556]
[1680544726734,0.02299,27977.0,27976.0,1.73451556]
[1680544727184,0.02299,27977.0,27976.0,1.64971556]
[1680544727644,0.02299,27977.0,27976.0,1.67771556]
[1680544728547,0.02299,27977.0,27976.0,1.70281556]
[1680544728789,0.02299,27977.0,27976.0,1.66631556]
[1680544729317,0.02299,27977.0,27976.0,1.69431556]
[1680544729553,0.02299,27977.0,27976.0,1.66631556]
[1680544729787,0.02299,27977.0,27976.0,1.69431556]
[1680544730021,0.02299,27977.0,27976.0,1.66631556]
[1680544730251,0.02299,27977.0,27976.0,1.69431556]
[1680544730728,0.02299,27977.0,27976.0,1.66631556]
[1680544731382,0.01799,27977.0,27976.0,1.66637556]
[1680544731641,0.01799,27977.0,27976.0,1.66631556]
[1680544732333,0.01799,27977.0,27976.0,1.69431556]
[1680544732554,0.01799,27977.0,27976.0,1.66631556]
[1680544732779,0.01799,27977.0,27976.0,1.69431556]
[1680544733004,0.01799,27977.0,27976.0,1.66631556]
[1680544733230,0.01799,27977.0,27976.0,1.69431556]
[1680544733462,0.01799,27977.0,27976.0,1.66631556]
[1680544733686,0.01799,27977.0,27976.0,1.69431556]
[1680544734140,0.01799,27977.0,27976.0,1.67481556]
[1680544734425,0.01799,27977.0,27976.0,1.70281556]
[1680544736014,0.01799,27977.0,27976.0,1.67481556]
[1680544736254,0.01799,27977.0,27976.0,1.70281556]
[1680544736933,0.01799,27977.0,27976.0,1.67481556]
[1680544737163,0.01799,27977.0,27976.0,1.70281556]
[1680544737614,0.01799,27977.0,27976.0,1.67481556]
[1680544737845,0.01799,27977.0,27976.0,1.70281556]
[1680544738074,0.01799,27977.0,27976.0,1.67481556]
[1680544739324,0.01054587,27977.0,27976.0,1.67481556]
[1680544739636,0.01054587,27977.0,27976.0,1.70281556]
[1680544740191,0.01054587,27977.0,27976.0,1.78701556]
[1680544740461,0.00221553,27977.0,27976.0,1.78701556]
[1680544740996,0.00221553,27977.0,27976.0,1.81501556]
[1680544742405,0.00221553,27977.0,27976.0,1.75901556]
[1680544742628,0.00221553,27977.0,27976.0,1.78701556]
[1680544742860,0.00221553,27977.0,27976.0,1.75901556]
[1680544743087,0.00221553,27977.0,27976.0,1.78701556]
[1680544743315,0.00221553,27977.0,27976.0,2.13281556]
[1680544743545,0.00221553,27977.0,27976.0,2.16081556]
[1680544743772,0.00221553,27977.0,27976.0,2.13281556]
[1680544743995,0.00221553,27977.0,27976.0,2.16081556]
[1680544744220,0.00221553,27977.0,27976.0,2.13281556]
[1680544744443,0.00221553,27977.0,27976.0,2.12798056]
[1680544744695,0.02549172,27981.0,27978.0,0.371065]
[1680544744929,0.02549172,27981.0,27980.0,0.540665]
[1680544745162,0.02549172,27981.0,27980.0,1.61324456]
[1680544745590,0.02549172,27981.0,27980.0,1.79954456]
[1680544746723,0.02549172,27981.0,27980.0,1.82754456]
[1680544746951,0.02549172,27981.0,27980.0,1.79954456]
[1680544747155,0.02549172,27981.0,27980.0,1.82754456]
[1680544748070,0.02549172,27981.0,27980.0,1.79954456]
[1680544748289,0.02549172,27981.0,27980.0,1.82754456]
[1680544748502,0.02549172,27981.0,27980.0,1.79954456]
[1680544748733,0.02549172,27981.0,27980.0,1.82754456]
[1680544748960,0.02549172,27981.0,27980.0,1.79954456]
[1680544749429,0.02549172,27981.0,27980.0,1.82754456]
[1680544749713,0.02549172,27981.0,27980.0,1.79954456]
[1680544750460,0.02549172,27981.0,27980.0,1.82754456]
[1680544750681,0.02549172,27981.0,27980.0,0.232169]
[1680544751144,0.02549172,27981.0,27980.0,0.204169]
[1680544751364,0.02591172,27981.0,27980.0,0.232169]
[1680544751588,0.02591172,27981.0,27980.0,0.204169]
[1680544752080,0.02591172,27981.0,27980.0,0.232169]
[1680544752306,0.02591172,27981.0,27980.0,0.2143]
[1680544752777,0.02591172,27981.0,27980.0,0.232169]
[1680544753004,0.02591172,27981.0,27980.0,0.204169]
[1680544753241,0.02591172,27981.0,27980.0,0.275648]
[1680544753919,0.02591172,27981.0,27980.0,0.651548]
[1680544754147,0.02591172,27981.0,27980.0,1.03325856]
[1680544754346,0.02591172,27981.0,27980.0,1.00625856]
[1680544754610,0.02591172,27981.0,27980.0,1.03425856]
[1680544755340,0.02591172,27981.0,27980.0,1.01475856]
[1680544755566,0.02549172,27981.0,27980.0,1.42755856]
[1680544755795,0.02549172,27981.0,27980.0,1.48435856]
[1680544756037,0.02549172,27981.0,27980.0,1.88435856]
[1680544756504,0.02549172,27981.0,27980.0,1.91235856]
[1680544757202,0.02299,27984.0,27982.0,0.3759]
[1680544757426,0.02299,27984.0,27983.0,1.52153256]
[1680544757659,0.02299,27984.0,27983.0,1.21278056]
[1680544757905,0.02246396,27984.0,27983.0,1.61849676]
[1680544758100,0.02246396,27984.0,27983.0,1.61867676]
[1680544758340,0.02299,27987.0,27985.0,0.3759]
[1680544758599,0.02299,27987.0,27986.0,1.16417256]
[1680544759619,0.02299,27987.0,27986.0,1.35997256]
[1680544760116,0.02299,27987.0,27986.0,1.23491056]
[1680544760375,0.02299,27987.0,27986.0,1.35997256]
[1680544761075,0.02299,27987.0,27986.0,1.38797256]
[1680544761328,0.02299,27987.0,27986.0,1.35997256]
[1680544761578,0.02299,27987.0,27986.0,1.38797256]
[1680544762281,0.02299,27987.0,27986.0,1.35997256]
[1680544762504,0.02299,27987.0,27986.0,1.38797256]
[1680544762718,0.02299,27987.0,27986.0,1.024762]
[1680544762946,0.02299,27987.0,27986.0,0.5238]
[1680544763168,0.02299,27987.0,27986.0,0.1958]
[1680544763396,0.10779,27987.0,27986.0,0.1958]
[1680544763610,0.10821,27987.0,27986.0,0.1958]
[1680544763864,0.10821,27987.0,27982.0,0.018048]
[1680544764077,0.0980358,27983.0,27982.0,0.017868]
[1680544764317,0.0980358,27983.0,27982.0,0.393768]
[1680544765042,0.0980358,27983.0,27982.0,0.421768]
[1680544765903,0.0980358,27983.0,27982.0,0.721768]
[1680544766130,0.0980358,27983.0,27982.0,1.07647856]
[1680544766355,0.0980358,27983.0,27982.0,1.26667856]
[1680544767275,0.0980358,27983.0,27982.0,1.23867856]
[1680544767498,0.0980358,27983.0,27982.0,1.26667856]
[1680544772427,0.0980358,27983.0,27982.0,1.29467856]
[1680544773308,0.0980358,27983.0,27982.0,0.91877856]
[1680544773539,0.0980358,27983.0,27982.0,1.29467856]
[1680544773779,0.0980358,27983.0,27982.0,0.91877856]
[1680544774499,0.0980358,27983.0,27982.0,1.29467856]
[1680544777427,0.0980358,27983.0,27982.0,0.564068]
[1680544777662,0.0984558,27983.0,27982.0,0.564068]
[1680544777918,0.0984558,27983.0,27982.0,0.2462]
[1680544778139,0.1830558,27983.0,27982.0,0.056]
[1680544778825,0.1830558,27983.0,27980.0,0.317869]
[1680544779073,0.0984558,27983.0,27982.0,0.045868]
[1680544779306,0.1832558,27983.0,27982.0,0.017868]
[1680544779540,0.1832558,27983.0,27982.0,0.031868]
[1680544780517,0.1832558,27983.0,27982.0,0.017868]